[Event "Titled Tuesday Blitz December 27 Early 2022"]
[White "Vasques, Antonio Pedro Freixial"]
[Black "Herman, Daniel"]
[WhiteFideId "1908332"]
[BlackFideId "30935008"]
[WhiteElo "2214"]
[BlackElo "1956"]
[Result "0-1"]
[Round "11"]
[TimeControl "180+2"]
[Date "2022.12.27"]
[WhiteClock "0:00:19"]
[BlackClock "0:00:45"]

1. d4 {[%clk 0:03:00]}  Nf6 {[%clk 0:02:59]} 2. Bg5 {[%clk 0:02:56]}  g6 {[%clk 0:02:56]} 3. Bxf6 {[%clk 0:02:56]}  exf6 {[%clk 0:02:57]} 4. e3 {[%clk 0:02:52]}  Bg7 {[%clk 0:02:55]} 5. Bd3 {[%clk 0:02:52]}  O-O {[%clk 0:02:53]} 6. h4 {[%clk 0:02:52]}  f5 {[%clk 0:02:46]} 7. h5 {[%clk 0:02:52]}  c5 {[%clk 0:02:42]} 8. c3 {[%clk 0:02:44]}  Nc6 {[%clk 0:02:26]} 9. Ne2 {[%clk 0:02:36]}  d5 {[%clk 0:02:22]} 10. Nd2 {[%clk 0:02:21]}  Be6 {[%clk 0:02:16]} 11. dxc5 {[%clk 0:02:14]}  Ne5 {[%clk 0:02:16]} 12. Bc2 {[%clk 0:02:08]}  b6 {[%clk 0:02:15]} 13. cxb6 {[%clk 0:02:02]}  Qxb6 {[%clk 0:02:16]} 14. Nb3 {[%clk 0:02:02]}  Nc4 {[%clk 0:02:13]} 15. Rb1 {[%clk 0:01:57]}  f4 {[%clk 0:01:58]} 16. exf4 {[%clk 0:01:47]}  Rfe8 {[%clk 0:01:55]} 17. hxg6 {[%clk 0:01:44]}  hxg6 {[%clk 0:01:54]} 18. O-O {[%clk 0:01:45]}  Bg4 {[%clk 0:01:49]} 19. Bd3 {[%clk 0:01:40]}  Rad8 {[%clk 0:01:37]} 20. Qc2 {[%clk 0:01:30]}  Qf6 {[%clk 0:01:33]} 21. Nbd4 {[%clk 0:01:24]}  Bh6 {[%clk 0:01:28]} 22. f5 {[%clk 0:01:23]}  Kg7 {[%clk 0:01:23]} 23. Ng3 {[%clk 0:01:18]}  Bf4 {[%clk 0:01:15]} 24. Rbe1 {[%clk 0:01:07]}  Rh8 {[%clk 0:01:14]} 25. Re6 {[%clk 0:00:26]}  Qh4 {[%clk 0:00:52]} 26. Rfe1 {[%clk 0:00:25]}  Qh2+ {[%clk 0:00:43]} 27. Kf1 {[%clk 0:00:25]}  Qh1+ {[%clk 0:00:44]} 28. Nxh1 {[%clk 0:00:19]}  Rxh1# {[%clk 0:00:45]} 0-1


[Site "https://www.chess.com"]

[Event "Titled Tuesday Blitz December 27 Early 2022"]
[White "Viskelis, Darius"]
[Black "Garcia Almaguer, Juan Manuel"]
[WhiteFideId "12800830"]
[BlackFideId "5110491"]
[WhiteElo "2166"]
[BlackElo "2090"]
[Result "1-0"]
[Round "11"]
[TimeControl "180+2"]
[Date "2022.12.27"]
[WhiteClock "0:00:12"]
[BlackClock "0:00:36"]

1. e4 {[%clk 0:03:00]}  e5 {[%clk 0:02:59]} 2. Nf3 {[%clk 0:03:00]}  Nc6 {[%clk 0:02:59]} 3. Bc4 {[%clk 0:03:00]}  Nf6 {[%clk 0:02:59]} 4. d3 {[%clk 0:02:59]}  h6 {[%clk 0:02:59]} 5. O-O {[%clk 0:02:59]}  d6 {[%clk 0:02:58]} 6. c3 {[%clk 0:02:59]}  g5 {[%clk 0:02:58]} 7. b4 {[%clk 0:02:51]}  g4 {[%clk 0:02:52]} 8. Ne1 {[%clk 0:02:51]}  h5 {[%clk 0:02:51]} 9. f4 {[%clk 0:02:51]}  gxf3 {[%clk 0:02:48]} 10. Qxf3 {[%clk 0:02:51]}  Be7 {[%clk 0:02:38]} 11. Bg5 {[%clk 0:02:49]}  Bg4 {[%clk 0:02:38]} 12. Qf2 {[%clk 0:02:46]}  Ng8 {[%clk 0:02:02]} 13. Qxf7+ {[%clk 0:02:31]}  Kd7 {[%clk 0:02:02]} 14. h3 {[%clk 0:02:24]}  Kc8 {[%clk 0:01:46]} 15. Bxe7 {[%clk 0:02:03]}  Ngxe7 {[%clk 0:01:47]} 16. hxg4 {[%clk 0:02:00]}  hxg4 {[%clk 0:01:48]} 17. Be6+ {[%clk 0:01:54]}  Kb8 {[%clk 0:01:48]} 18. Bxg4 {[%clk 0:01:54]}  a6 {[%clk 0:01:36]} 19. a4 {[%clk 0:01:53]}  Ka7 {[%clk 0:01:33]} 20. b5 {[%clk 0:01:53]}  Na5 {[%clk 0:01:33]} 21. bxa6 {[%clk 0:01:39]}  Kxa6 {[%clk 0:01:17]} 22. Na3 {[%clk 0:01:33]}  Nec6 {[%clk 0:01:17]} 23. Nb5 {[%clk 0:01:31]}  Qh4 {[%clk 0:01:17]} 24. Nxc7+ {[%clk 0:01:21]}  Ka7 {[%clk 0:01:16]} 25. Nxa8 {[%clk 0:01:11]}  Qxg4 {[%clk 0:01:08]} 26. Nc7 {[%clk 0:01:07]}  Qg3 {[%clk 0:01:04]} 27. Nb5+ {[%clk 0:01:00]}  Ka6 {[%clk 0:01:00]} 28. Nf3 {[%clk 0:00:51]}  Nd8 {[%clk 0:00:51]} 29. Qf6 {[%clk 0:00:41]}  Rg8 {[%clk 0:00:49]} 30. Qxd6+ {[%clk 0:00:41]}  Nac6 {[%clk 0:00:49]} 31. Rf2 {[%clk 0:00:32]}  Nf7 {[%clk 0:00:45]} 32. Qc5 {[%clk 0:00:12]}  Ng5 {[%clk 0:00:36]} 33. Nc7# {[%clk 0:00:12]} 1-0


[Site "https://www.chess.com"]

[Event "Titled Tuesday Blitz December 27 Early 2022"]
[White "Vlassov, Nikolai"]
[Black "Bettalli, Francesco"]
[WhiteFideId "4103360"]
[BlackFideId "2816453"]
[WhiteElo "2283"]
[BlackElo "2252"]
[Result "0-1"]
[Round "11"]
[TimeControl "180+2"]
[Date "2022.12.27"]
[WhiteClock "0:00:10"]
[BlackClock "0:00:50"]

1. e4 {[%clk 0:03:00]}  g6 {[%clk 0:02:52]} 2. Nc3 {[%clk 0:03:00]}  c5 {[%clk 0:02:39]} 3. h4 {[%clk 0:02:59]}  h5 {[%clk 0:02:38]} 4. Nf3 {[%clk 0:02:58]}  Nc6 {[%clk 0:02:37]} 5. Bc4 {[%clk 0:02:42]}  Bg7 {[%clk 0:02:26]} 6. d3 {[%clk 0:02:42]}  d6 {[%clk 0:02:25]} 7. Ng5 {[%clk 0:02:42]}  Nh6 {[%clk 0:02:25]} 8. f3 {[%clk 0:02:40]}  e6 {[%clk 0:02:22]} 9. Be3 {[%clk 0:02:39]}  a6 {[%clk 0:02:23]} 10. Qd2 {[%clk 0:02:37]}  Nd4 {[%clk 0:02:20]} 11. a4 {[%clk 0:02:32]}  Bd7 {[%clk 0:02:18]} 12. Nd1 {[%clk 0:02:27]}  b5 {[%clk 0:02:14]} 13. Bxd4 {[%clk 0:01:57]}  Bxd4 {[%clk 0:02:10]} 14. Bb3 {[%clk 0:01:54]}  b4 {[%clk 0:01:56]} 15. c3 {[%clk 0:01:51]}  bxc3 {[%clk 0:01:54]} 16. bxc3 {[%clk 0:01:52]}  Bf6 {[%clk 0:01:54]} 17. d4 {[%clk 0:01:43]}  Rb8 {[%clk 0:01:53]} 18. Bc4 {[%clk 0:01:40]}  Qa5 {[%clk 0:01:47]} 19. Ra2 {[%clk 0:01:30]}  cxd4 {[%clk 0:01:45]} 20. cxd4 {[%clk 0:01:30]}  Qxd2+ {[%clk 0:01:44]} 21. Rxd2 {[%clk 0:01:30]}  Rb4 {[%clk 0:01:44]} 22. Bxa6 {[%clk 0:01:28]}  Rxa4 {[%clk 0:01:44]} 23. Be2 {[%clk 0:01:18]}  Rxd4 {[%clk 0:01:41]} 24. Rxd4 {[%clk 0:01:15]}  Bxd4 {[%clk 0:01:42]} 25. Kd2 {[%clk 0:01:16]}  f6 {[%clk 0:01:40]} 26. Nh3 {[%clk 0:01:12]}  O-O {[%clk 0:01:40]} 27. Nf4 {[%clk 0:01:09]}  Kg7 {[%clk 0:01:39]} 28. Ne3 {[%clk 0:01:06]}  Rb8 {[%clk 0:01:34]} 29. Rc1 {[%clk 0:00:47]}  Rb2+ {[%clk 0:01:34]} 30. Kd3 {[%clk 0:00:44]}  Bb6 {[%clk 0:01:20]} 31. Nc4 {[%clk 0:00:40]}  Bb5 {[%clk 0:01:19]} 32. Kc3 {[%clk 0:00:36]}  Bxc4 {[%clk 0:01:13]} 33. Kxb2 {[%clk 0:00:30]}  Bd4+ {[%clk 0:01:13]} 34. Ka3 {[%clk 0:00:20]}  Bc5+ {[%clk 0:01:07]} 35. Ka4 {[%clk 0:00:20]}  Bxe2 {[%clk 0:01:05]} 36. Nxe2 {[%clk 0:00:20]}  g5 {[%clk 0:01:03]} 37. hxg5 {[%clk 0:00:19]}  fxg5 {[%clk 0:01:04]} 38. Kb5 {[%clk 0:00:20]}  Nf7 {[%clk 0:01:04]} 39. Kc6 {[%clk 0:00:16]}  Ne5+ {[%clk 0:01:01]} 40. Kc7 {[%clk 0:00:16]}  Kf6 {[%clk 0:01:01]} 41. Rc3 {[%clk 0:00:14]}  Ng6 {[%clk 0:00:54]} 42. Kd7 {[%clk 0:00:13]}  h4 {[%clk 0:00:50]} 43. Rd3 {[%clk 0:00:11]}  Ne5+ {[%clk 0:00:49]} 44. Kc7 {[%clk 0:00:10]}  Nxd3 {[%clk 0:00:50]} 0-1


[Site "https://www.chess.com"]

[Event "Titled Tuesday Blitz December 27 Early 2022"]
[White "White, John S."]
[Black "Pantev, Veselin"]
[WhiteFideId "2502348"]
[BlackFideId "2901390"]
[WhiteElo "2235"]
[BlackElo "2374"]
[Result "0-1"]
[Round "11"]
[TimeControl "180+2"]
[Date "2022.12.27"]
[WhiteClock "0:00:00"]
[BlackClock "0:02:40"]

1. e4 {[%clk 0:02:57]}  c6 {[%clk 0:02:59]} 2. d3 {[%clk 0:02:56]}  d5 {[%clk 0:02:58]} 3. Nd2 {[%clk 0:02:56]}  Nf6 {[%clk 0:02:57]} 4. Ngf3 {[%clk 0:02:54]}  Bg4 {[%clk 0:02:57]} 5. g3 {[%clk 0:02:52]}  dxe4 {[%clk 0:02:54]} 6. dxe4 {[%clk 0:02:50]}  Nbd7 {[%clk 0:02:54]} 7. Bg2 {[%clk 0:02:49]}  e6 {[%clk 0:02:54]} 8. O-O {[%clk 0:02:48]}  Be7 {[%clk 0:02:54]} 9. Re1 {[%clk 0:02:43]}  Qc7 {[%clk 0:02:53]} 10. h3 {[%clk 0:02:39]}  Bh5 {[%clk 0:02:53]} 11. g4 {[%clk 0:02:29]}  Bg6 {[%clk 0:02:52]} 12. e5 {[%clk 0:02:26]}  Nd5 {[%clk 0:02:52]} 13. c4 {[%clk 0:02:24]}  Nb4 {[%clk 0:02:51]} 14. Ne4 {[%clk 0:02:04]}  Nxe5 {[%clk 0:02:51]} 15. Nxe5 {[%clk 0:01:57]}  Qxe5 {[%clk 0:02:51]} 16. a3 {[%clk 0:01:55]}  Rd8 {[%clk 0:02:46]} 17. Qb3 {[%clk 0:01:13]}  Nd3 {[%clk 0:02:46]} 18. Re3 {[%clk 0:01:04]}  Nxc1 {[%clk 0:02:46]} 19. Rxc1 {[%clk 0:00:45]}  Qc7 {[%clk 0:02:46]} 20. c5 {[%clk 0:00:37]}  O-O {[%clk 0:02:45]} 21. Qc3 {[%clk 0:00:29]}  Bxe4 {[%clk 0:02:44]} 22. Bxe4 {[%clk 0:00:27]}  Bg5 {[%clk 0:02:43]} 23. Rd3 {[%clk 0:00:22]}  Bxc1 {[%clk 0:02:42]} 24. Qxc1 {[%clk 0:00:20]}  Rxd3 {[%clk 0:02:42]} 25. Bxd3 {[%clk 0:00:14]}  Rd8 {[%clk 0:02:43]} 26. Qe3 {[%clk 0:00:13]}  Qd7 {[%clk 0:02:42]} 27. Bc2 {[%clk 0:00:05]}  Qd4 {[%clk 0:02:42]} 28. Qg5 {[%clk 0:00:00]}  g6 {[%clk 0:02:40]} 0-1


[Site "https://www.chess.com"]

[Event "Titled Tuesday Blitz December 27 Early 2022"]
[White "Yaran, Siar"]
[Black "Tymrakiewicz, Rafal"]
[WhiteFideId "6323006"]
[BlackFideId "1108832"]
[WhiteElo "2288"]
[BlackElo "2144"]
[Result "1-0"]
[Round "11"]
[TimeControl "180+2"]
[Date "2022.12.27"]
[WhiteClock "0:00:37"]
[BlackClock "0:00:02"]

1. d4 {[%clk 0:03:00]}  Nf6 {[%clk 0:02:58]} 2. c4 {[%clk 0:03:01]}  d6 {[%clk 0:02:58]} 3. Nc3 {[%clk 0:03:01]}  e5 {[%clk 0:02:58]} 4. dxe5 {[%clk 0:02:57]}  dxe5 {[%clk 0:02:58]} 5. Qxd8+ {[%clk 0:02:58]}  Kxd8 {[%clk 0:02:58]} 6. Nf3 {[%clk 0:02:59]}  Nbd7 {[%clk 0:02:51]} 7. Rg1 {[%clk 0:02:58]}  c6 {[%clk 0:02:49]} 8. g4 {[%clk 0:02:58]}  Bb4 {[%clk 0:02:42]} 9. Bd2 {[%clk 0:02:56]}  a5 {[%clk 0:02:37]} 10. g5 {[%clk 0:02:51]}  Nh5 {[%clk 0:02:37]} 11. e3 {[%clk 0:02:44]}  Re8 {[%clk 0:02:17]} 12. Be2 {[%clk 0:02:39]}  g6 {[%clk 0:02:16]} 13. O-O-O {[%clk 0:02:38]}  Kc7 {[%clk 0:02:15]} 14. Ne4 {[%clk 0:02:32]}  Be7 {[%clk 0:02:11]} 15. Bc3 {[%clk 0:02:30]}  Bb4 {[%clk 0:02:02]} 16. Kc2 {[%clk 0:02:20]}  Ng7 {[%clk 0:01:53]} 17. Rd2 {[%clk 0:02:13]}  Nc5 {[%clk 0:01:40]} 18. Nxc5 {[%clk 0:02:06]}  Bxc5 {[%clk 0:01:39]} 19. Bxe5+ {[%clk 0:02:03]}  Rxe5 {[%clk 0:01:32]} 20. Nxe5 {[%clk 0:02:04]}  Be6 {[%clk 0:01:28]} 21. Bg4 {[%clk 0:01:57]}  Nf5 {[%clk 0:01:28]} 22. h3 {[%clk 0:01:23]}  Rf8 {[%clk 0:01:27]} 23. Rgd1 {[%clk 0:01:16]}  Bb4 {[%clk 0:00:58]} 24. Rd7+ {[%clk 0:01:11]}  Bxd7 {[%clk 0:00:57]} 25. Rxd7+ {[%clk 0:01:10]}  Kb6 {[%clk 0:00:53]} 26. Bxf5 {[%clk 0:01:07]}  gxf5 {[%clk 0:00:50]} 27. a3 {[%clk 0:01:06]}  Bc5 {[%clk 0:00:29]} 28. Rxf7 {[%clk 0:01:03]}  Rxf7 {[%clk 0:00:27]} 29. Nxf7 {[%clk 0:01:04]}  Kc7 {[%clk 0:00:20]} 30. Kc3 {[%clk 0:01:00]}  Kd7 {[%clk 0:00:20]} 31. b4 {[%clk 0:00:59]}  axb4+ {[%clk 0:00:21]} 32. axb4 {[%clk 0:01:00]}  Bb6 {[%clk 0:00:19]} 33. Ne5+ {[%clk 0:00:45]}  Ke6 {[%clk 0:00:18]} 34. Nd3 {[%clk 0:00:45]}  Bc7 {[%clk 0:00:04]} 35. Nc5+ {[%clk 0:00:40]}  Ke5 {[%clk 0:00:04]} 36. f4+ {[%clk 0:00:40]}  Kd6 {[%clk 0:00:02]} 37. Nxb7+ {[%clk 0:00:40]}  Ke7 {[%clk 0:00:02]} 38. c5 {[%clk 0:00:38]}  Ke6 {[%clk 0:00:02]} 39. Kc4 {[%clk 0:00:37]} 1-0


[Site "https://www.chess.com"]

[Event "Titled Tuesday Blitz December 27 Early 2022"]
[White "Zherebtsova, Alexandra"]
[Black "Williams, Simon K"]
[WhiteFideId "24129518"]
[BlackFideId "404454"]
[WhiteElo "2155"]
[BlackElo "2465"]
[Result "0-1"]
[Round "11"]
[TimeControl "180+2"]
[Date "2022.12.27"]
[WhiteClock "0:00:03"]
[BlackClock "0:00:43"]

1. d4 {[%clk 0:02:59]}  e6 {[%clk 0:02:56]} 2. Nf3 {[%clk 0:02:58]}  f5 {[%clk 0:02:56]} 3. c4 {[%clk 0:02:57]}  Nf6 {[%clk 0:02:55]} 4. Nc3 {[%clk 0:02:58]}  Be7 {[%clk 0:02:50]} 5. g3 {[%clk 0:02:56]}  O-O {[%clk 0:02:49]} 6. Bg2 {[%clk 0:02:55]}  d6 {[%clk 0:02:49]} 7. O-O {[%clk 0:02:53]}  Ne4 {[%clk 0:02:49]} 8. Qc2 {[%clk 0:02:52]}  Nxc3 {[%clk 0:02:49]} 9. Qxc3 {[%clk 0:02:51]}  a5 {[%clk 0:02:49]} 10. b3 {[%clk 0:02:50]}  Nc6 {[%clk 0:02:49]} 11. a3 {[%clk 0:02:46]}  Bf6 {[%clk 0:02:48]} 12. Bb2 {[%clk 0:02:41]}  e5 {[%clk 0:02:48]} 13. dxe5 {[%clk 0:02:35]}  dxe5 {[%clk 0:02:48]} 14. Rfd1 {[%clk 0:02:35]}  Qe7 {[%clk 0:02:42]} 15. Qc2 {[%clk 0:02:27]}  g5 {[%clk 0:02:40]} 16. e3 {[%clk 0:02:10]}  g4 {[%clk 0:02:38]} 17. Ne1 {[%clk 0:02:02]}  e4 {[%clk 0:02:36]} 18. Bxf6 {[%clk 0:01:57]}  Qxf6 {[%clk 0:02:36]} 19. h4 {[%clk 0:01:37]}  Ne5 {[%clk 0:02:32]} 20. Rac1 {[%clk 0:01:24]}  Be6 {[%clk 0:02:30]} 21. Qc3 {[%clk 0:01:23]}  Kf7 {[%clk 0:02:22]} 22. c5 {[%clk 0:01:05]}  Nc6 {[%clk 0:02:19]} 23. Qc2 {[%clk 0:00:49]}  Rfd8 {[%clk 0:02:10]} 24. Bf1 {[%clk 0:00:48]}  Rxd1 {[%clk 0:02:07]} 25. Rxd1 {[%clk 0:00:48]}  Rd8 {[%clk 0:02:08]} 26. Rxd8 {[%clk 0:00:46]}  Qxd8 {[%clk 0:02:07]} 27. Bb5 {[%clk 0:00:40]}  Ne5 {[%clk 0:01:56]} 28. Qc3 {[%clk 0:00:30]}  Qd5 {[%clk 0:01:55]} 29. b4 {[%clk 0:00:28]}  c6 {[%clk 0:01:44]} 30. Be2 {[%clk 0:00:25]}  a4 {[%clk 0:01:32]} 31. Nc2 {[%clk 0:00:20]}  Nf3+ {[%clk 0:01:27]} 32. Bxf3 {[%clk 0:00:19]}  exf3 {[%clk 0:01:22]} 33. Nd4 {[%clk 0:00:17]}  Qe4 {[%clk 0:01:21]} 34. Qc1 {[%clk 0:00:16]}  Bb3 {[%clk 0:01:19]} 35. Qb2 {[%clk 0:00:13]}  Qd3 {[%clk 0:01:16]} 36. Qc1 {[%clk 0:00:11]}  Bc4 {[%clk 0:01:10]} 37. Kh2 {[%clk 0:00:11]}  Kg6 {[%clk 0:01:02]} 38. Kg1 {[%clk 0:00:10]}  h5 {[%clk 0:01:01]} 39. Kh2 {[%clk 0:00:09]}  Qf1 {[%clk 0:00:50]} 40. Qxf1 {[%clk 0:00:08]}  Bxf1 {[%clk 0:00:50]} 41. Kg1 {[%clk 0:00:08]}  Bc4 {[%clk 0:00:48]} 42. Nc2 {[%clk 0:00:06]}  Kf6 {[%clk 0:00:48]} 43. Nd4 {[%clk 0:00:06]}  Ke5 {[%clk 0:00:48]} 44. Kh2 {[%clk 0:00:05]}  Ke4 {[%clk 0:00:48]} 45. Kg1 {[%clk 0:00:05]}  Ke5 {[%clk 0:00:46]} 46. Kh2 {[%clk 0:00:05]}  Bd3 {[%clk 0:00:45]} 47. Kg1 {[%clk 0:00:03]}  Kd5 {[%clk 0:00:45]} 48. Kh2 {[%clk 0:00:03]}  Kc4 {[%clk 0:00:45]} 49. Ne6 {[%clk 0:00:03]}  Kb3 {[%clk 0:00:45]} 50. Nd8 {[%clk 0:00:03]}  Kxa3 {[%clk 0:00:45]} 51. Nxb7 {[%clk 0:00:04]}  Kxb4 {[%clk 0:00:46]} 52. Nd8 {[%clk 0:00:03]}  Kxc5 {[%clk 0:00:45]} 53. Ne6+ {[%clk 0:00:03]}  Kd6 {[%clk 0:00:43]} 0-1


[Site "https://www.chess.com"]